[Event "FRA-ch Youth U18 2018"]
[Site "Agen"]
[Date "2018.04.15"]
[Round "1"]
[White "Rollot, Florence"]
[Black "Goeau, Aurelice"]
[Result "1-0"]
[ECO "A05"]
[WhiteElo "2042"]
[BlackElo "1573"]
[Annotator "NA RC"]
[PlyCount "85"]
[EventDate "2018.??.??"]
[EventType "swiss"]
[EventCountry "FRA"]
[SourceTitle "playchess.com"]
[Source "ChessBase"]
[SourceQuality "1"]
[TimeControl "5400+30"]

1. Nf3 {[%emt 0:00:00]} Nf6 {[%emt 0:00:19]} 2. c4 {[%emt 0:00:00]} g6 {[%emt 0:00:31]} 3. g3 {[%emt 0:00:00]} Bg7 {[%emt 0:00:08]} 4. Bg2 {[%emt 0:00:00]} O-O {[%emt 0:00:23]} 5. O-O {[%emt 0:00:12]} c6 {[%emt 0:03:28]} 6. Nc3 {[%emt 0:07:15]} d5 {[%emt 0:02:49]} 7. cxd5 {[%emt 0:02:05]} cxd5 {[%emt 0:03:25]} 8. d4 {[%emt 0:03:24]} Bg4 {[%emt 0:16:44] D79: Fianchetto Grünfeld: Symmetrical Variation (6 0-0 c6 7 cxd5 cxd5)} (8... Ne4 9. Ne5 Nxc3 10. bxc3 Nc6 11. Nxc6 bxc6 12. Qa4 Qb6 13. Ba3 Qa6 14. Qxa6 Bxa6 15. Rfe1 Rfe8 16. e3 {½-½ (16) Petrosian,T (2601)-Svidler,P (2765) Riadh 2017}) 9. Ne5 {[%emt 0:03:04]} Bf5 {[%emt 0:04:34]} 10. Qb3 {[%emt 0:14:50]} Nc6 {[%emt 0:03:28]} 11. Rd1 {[%emt 0:03:54]} Qc7 $146 {[%emt 0:11:37]} ({Predecessor:} 11... Na5 12. Qa4 a6 13. Bg5 b5 14. Qb4 Be6 15. Rac1 h6 16. Bxf6 exf6 {1-0 (84) Van Treeck,J-Hottgenroth,W Kleve 2000}) 12. Bf4 {[%emt 0:05:42]} Nxe5 {[%emt 0:10:57]} 13. Bxe5 {[%emt 0:01:25]} Qd7 {[%emt 0:01:30]} 14. Nxd5 {[%emt 0:01:32]} Rac8 {[%emt 0:06:21]} 15. Rac1 {[%emt 0:03:33]} b6 {[%emt 0:02:34]} 16. Nxf6+ {[%emt 0:08:27]} exf6 {[%emt 0:03:59]} 17. Bf4 {[%emt 0:02:14]} Rfd8 {[%emt 0:01:36]} 18. d5 {[%emt 0:01:32]} Qe8 {[%emt 0:04:56]} 19. Bf3 {[%emt 0:06:24]} Bf8 {[%emt 0:05:23]} 20. Bc7 {[%emt 0:00:56]} Rd7 {[%emt 0:01:35] [#]} 21. Qa4 $11 {[%emt 0:05:40]} (21. Qb5 $1 $16) 21... Bc5 {[%emt 0:04:27]} 22. d6 {[%emt 0:00:30]} Qe5 {[%emt 0:01:24]} 23. e3 {[%emt 0:06:07]} Bxd6 {[%emt 0:03:47]} 24. Bxd6 {[%emt 0:01:40]} Rxd6 {[%emt 0:00:15]} 25. Qxa7 {[%emt 0:04:26]} Rxc1 {[%emt 0:04:29]} 26. Rxc1 {[%emt 0:00:18]} Qxb2 {[%emt 0:00:39]} 27. Rc7 {[%emt 0:09:12]} Bh3 {[%emt 0:01:33]} 28. Qb8+ {[%emt 0:00:29]} Kg7 {[%emt 0:00:09]} 29. Rxf7+ {[%emt 0:01:06]} Kxf7 {[%emt 0:01:03]} 30. Qxd6 {[%emt 0:00:09]} Qb1+ {[%emt 0:00:46]} 31. Bd1 {[%emt 0:04:27]} Bg4 {[%emt 0:00:38]} 32. Qd5+ {[%emt 0:00:15]} Kg7 {[%emt 0:00:04]} 33. f3 {[%emt 0:01:42]} Bh3 {[%emt 0:00:47]} 34. Qb3 {[%emt 0:00:58]} Qc1 {[%emt 0:00:33]} 35. Qd3 {[%emt 0:00:44]} Qb2 {[%emt 0:00:26]} 36. Qc2 {[%emt 0:00:24]} Qb5 {[%emt 0:00:14]} 37. Be2 {[%emt 0:00:27]} Qa5 {[%emt 0:00:41]} 38. Kf2 {[%emt 0:00:16]} Be6 {[%emt 0:00:14]} 39. Qc7+ {[%emt 0:01:17]} Bf7 {[%emt 0:00:47]} 40. a4 {[%emt 0:01:34]} Qb4 {[%emt 0:00:37]} 41. Qd7 {[%emt 0:00:29]} Qc5 {[%emt 0:00:35]} 42. h4 {[%emt 0:00:31]} Kh6 {[%emt 0:00:33]} 43. Qxf7 {[%emt 0:00:21] Kg7 Qd7+} 1-0

[Event "FRA-ch Youth U18 2018"]
[Site "Agen"]
[Date "2018.04.15"]
[Round "1"]
[White "Belluire, Beatrice"]
[Black "Masalles, Coralie"]
[Result "1-0"]
[ECO "C15"]
[WhiteElo "1818"]
[BlackElo "1533"]
[Annotator "NA RC"]
[PlyCount "55"]
[EventDate "2018.??.??"]
[EventType "swiss"]
[EventCountry "FRA"]
[SourceTitle "playchess.com"]
[Source "ChessBase"]
[SourceQuality "1"]
[TimeControl "5400+30"]

1. e4 {[%emt 0:00:00]} e6 {[%emt 0:00:04]} 2. d4 {[%emt 0:00:00]} d5 {[%emt 0:00:05]} 3. Nc3 {[%emt 0:00:00]} Bb4 {[%emt 0:02:47]} 4. Nge2 {[%emt 0:00:00]} dxe4 {[%emt 0:04:18]} 5. a3 {[%emt 0:00:00]} Be7 {[%emt 0:01:52]} 6. Nxe4 {[%emt 0:00:00]} Nf6 {[%emt 0:00:55]} 7. Qd3 {[%emt 0:00:32]} Nc6 {[%emt 0:02:56]} 8. Bf4 {[%emt 0:00:47]} b6 {[%emt 0:05:05]} 9. O-O-O {[%emt 0:08:04]} a5 {[%emt 0:07:22]} 10. Nxf6+ {[%emt 0:15:10]} Bxf6 {[%emt 0:02:03]} 11. Qg3 {[%emt 0:01:27]} Ra7 {[%emt 0:14:30]} 12. Nc3 {[%emt 0:00:41]} Ne7 {[%emt 0:03:49]} 13. Nb5 {[%emt 0:03:22]} Nf5 {[%emt 0:12:36]} 14. Qc3 {[%emt 0:01:18]} Rb7 {[%emt 0:05:12]} 15. Bxc7 {[%emt 0:19:05]} Qd7 {[%emt 0:10:56]} 16. Be5 {[%emt 0:04:42]} Be7 {[%emt 0:04:20]} 17. g4 {[%emt 0:00:58]} Nh6 {[%emt 0:01:27]} 18. Bxg7 {[%emt 0:02:54]} Bg5+ {[%emt 0:02:10]} 19. Kb1 {[%emt 0:00:15]} Rg8 {[%emt 0:03:17]} 20. Bxh6 {[%emt 0:00:44]} Rb8 {[%emt 0:02:21]} 21. Bxg5 {[%emt 0:05:04]} Rxg5 {[%emt 0:00:26]} 22. Bg2 {[%emt 0:01:00]} Kf8 {[%emt 0:01:56]} 23. Bc6 {[%emt 0:01:22]} Qd8 {[%emt 0:01:20]} 24. f4 {[%emt 0:05:21]} Rxg4 {[%emt 0:02:33]} 25. Rhg1 {[%emt 0:00:12]} Rxg1 {[%emt 0:00:46]} 26. Rxg1 {[%emt 0:00:02]} Qf6 {[%emt 0:00:56]} 27. a4 {[%emt 0:01:03]} Qe7 {[%emt 0:02:20]} 28. Qg3 {[%emt 0:00:08]} 1-0

[Event "FRA-ch Youth U18 2018"]
[Site "Agen"]
[Date "2018.04.15"]
[Round "1"]
[White "Perrin, Sophie"]
[Black "Lomandong, Noela-Joyce"]
[Result "0-1"]
[ECO "A10"]
[WhiteElo "1620"]
[BlackElo "2053"]
[Annotator "NA RC"]
[PlyCount "72"]
[EventDate "2018.??.??"]
[EventType "swiss"]
[EventCountry "FRA"]
[SourceTitle "playchess.com"]
[Source "ChessBase"]
[SourceQuality "1"]
[TimeControl "5400+30"]

1. c4 {[%emt 0:00:00]} g6 {[%emt 0:00:12]} 2. Nc3 {[%emt 0:00:10]} Bg7 {[%emt 0:00:10]} 3. Nf3 {[%emt 0:02:00]} d6 {[%emt 0:02:31]} 4. g3 {[%emt 0:01:30]} Nc6 {[%emt 0:02:34]} 5. Bg2 {[%emt 0:01:28]} e5 {[%emt 0:01:12]} 6. O-O {[%emt 0:07:06]} Nge7 {[%emt 0:01:24]} 7. Rb1 {[%emt 0:05:20]} Be6 {[%emt 0:07:53] LiveBook: 4 Games A25: English Opening vs King's Indian with ...Nc6 but without early d3} (7... a5 8. a3 O-O 9. d3 Nd4 10. Bg5 h6 11. Bxe7 Qxe7 12. b4 axb4 13. axb4 c6 14. b5 Ra3 15. bxc6 bxc6 16. Nxd4 exd4 17. Ne4 d5 {½-½ (116) Adhiban,B (2636)-Deac,B (2437) Zalakaros 2015}) 8. d3 {[%emt 0:01:59]} h6 {[%emt 0:00:52]} 9. b4 {[%emt 0:06:31]} Qc8 $146 {[%emt 0:09:09]} ({Predecessor:} 9... Qd7 10. b5 Nd8 11. Nd2 Bh3 12. Bxh3 Qxh3 13. Nd5 Ne6 14. Qa4 b6 15. e3 Nf5 16. Qd1 h5 17. Ne4 Ne7 18. Ndf6+ Bxf6 19. Nxf6+ {1-0 (41) Bakalchuk,J (2389)-Chernomordik,P (2254) Tiberias 2016}) 10. b5 {[%emt 0:08:04]} Nb8 {[%emt 0:02:15]} 11. a4 {[%emt 0:04:00]} Bh3 {[%emt 0:01:01]} 12. Nd5 {[%emt 0:10:12]} Bxg2 {[%emt 0:01:06]} 13. Kxg2 {[%emt 0:04:42]} Nd7 {[%emt 0:11:52]} 14. Nxe7 {[%emt 0:18:21]} Kxe7 {[%emt 0:00:25]} 15. Ba3 {[%emt 0:01:58]} a6 {[%emt 0:03:33]} 16. Qc2 $11 {[%emt 0:07:36]} Nc5 {[%emt 0:06:31]} 17. b6 {[%emt 0:04:31]} c6 {[%emt 0:06:38]} 18. a5 {[%emt 0:03:06]} Ne6 {[%emt 0:00:45]} 19. c5 {[%emt 0:05:12]} d5 {[%emt 0:00:13]} 20. Bb2 {[%emt 0:01:06]} f6 {[%emt 0:02:42]} 21. e3 {[%emt 0:02:47]} g5 {[%emt 0:05:36]} 22. h3 {[%emt 0:01:11]} h5 {[%emt 0:05:18]} 23. Rh1 {[%emt 0:01:05]} Kf7 {[%emt 0:00:53]} 24. Rh2 {[%emt 0:00:46]} Qf8 {[%emt 0:04:09]} 25. Rhh1 {[%emt 0:00:39]} Qxc5 {[%emt 0:02:15]} 26. Qd2 {[%emt 0:00:46]} Qd6 {[%emt 0:01:55]} 27. Rhd1 {[%emt 0:00:46]} Bf8 {[%emt 0:00:37]} 28. d4 {[%emt 0:00:32]} e4 {[%emt 0:00:12]} 29. Ne1 {[%emt 0:00:04]} Be7 {[%emt 0:00:27]} 30. f3 {[%emt 0:00:59]} h4 {[%emt 0:00:45]} 31. Qf2 {[%emt 0:00:23]} hxg3 {[%emt 0:03:56]} 32. Qxg3 {[%emt 0:00:06]} Qd7 {[%emt 0:00:03]} 33. Bc3 {[%emt 0:00:56]} Rag8 {[%emt 0:00:41]} 34. Nc2 {[%emt 0:00:31]} Nf4+ {[%emt 0:00:23]} 35. Kf2 {[%emt 0:00:32]} Rxh3 {[%emt 0:00:11]} 36. Qg4 {[%emt 0:00:31]} Rxf3+ {[%emt 0:00:08]} 0-1

[Event "FRA-ch Youth U18 2018"]
[Site "Agen"]
[Date "2018.04.15"]
[Round "1"]
[White "Prochazka, Margot"]
[Black "Salvador, Lucie"]
[Result "1/2-1/2"]
[ECO "C02"]
[WhiteElo "1546"]
[BlackElo "1955"]
[Annotator "NA RC"]
[PlyCount "76"]
[EventDate "2018.??.??"]
[EventType "swiss"]
[EventCountry "FRA"]
[SourceTitle "playchess.com"]
[Source "ChessBase"]
[SourceQuality "1"]
[TimeControl "5400+30"]

1. e4 {[%emt 0:00:00]} e6 {[%emt 0:00:04]} 2. d4 {[%emt 0:00:00]} d5 {[%emt 0:00:04]} 3. e5 {[%emt 0:00:05]} c5 {[%emt 0:00:05]} 4. c3 {[%emt 0:00:40]} Qb6 {[%emt 0:00:46]} 5. Nf3 {[%emt 0:01:27]} Nc6 {[%emt 0:00:19]} 6. Be2 {[%emt 0:03:51]} Nh6 {[%emt 0:05:52]} 7. Na3 {[%emt 0:05:36]} cxd4 {[%emt 0:03:50]} 8. cxd4 {[%emt 0:03:51]} Nf5 {[%emt 0:04:56]} 9. Nc2 {[%emt 0:07:11]} Be7 {[%emt 0:05:00]} 10. O-O {[%emt 0:02:23]} O-O {[%emt 0:03:25]} 11. b3 {[%emt 0:05:09]} f6 {[%emt 0:04:19]} 12. g4 {[%emt 0:13:33]} Nh6 {[%emt 0:00:14]} 13. Bxh6 {[%emt 0:00:24]} ({White has to play} 13. exf6 $16 Rxf6 14. g5 Rxf3 15. Bxf3) 13... gxh6 {[%emt 0:00:07]} 14. Qd2 {[%emt 0:08:51]} fxe5 {[%emt 0:09:17]} 15. dxe5 {[%emt 0:01:30]} Kg7 {[%emt 0:01:42]} 16. Kh1 {[%emt 0:07:49]} Bd7 {[%emt 0:04:53]} 17. g5 $11 {[%emt 0:02:45]} h5 {[%emt 0:08:37]} 18. Ncd4 {[%emt 0:08:16]} Rf7 {[%emt 0:09:34]} 19. Nxc6 {[%emt 0:09:49]} bxc6 {[%emt 0:06:56]} 20. Nd4 {[%emt 0:02:23]} c5 {[%emt 0:09:35]} 21. Nc2 {[%emt 0:00:53]} Raf8 {[%emt 0:04:01]} 22. Bxh5 {[%emt 0:03:25]} Rf4 {[%emt 0:00:17]} 23. f3 {[%emt 0:04:43]} Bxg5 {[%emt 0:06:39]} 24. Rg1 {[%emt 0:00:48]} h6 {[%emt 0:00:05]} 25. Raf1 {[%emt 0:00:58]} d4 {[%emt 0:02:29]} 26. Ne1 {[%emt 0:01:10]} Kh8 {[%emt 0:02:54]} 27. Qd3 {[%emt 0:01:59]} Bb5 {[%emt 0:02:02]} 28. Qg6 {[%emt 0:01:39]} Rg8 {[%emt 0:00:26]} 29. Qc2 {[%emt 0:00:26]} Bxf1 {[%emt 0:01:03]} 30. Rxf1 {[%emt 0:00:16]} Rh4 {[%emt 0:01:26]} 31. Bg4 {[%emt 0:00:46]} Bf4 {[%emt 0:01:07]} 32. h3 {[%emt 0:00:18]} Qc6 {[%emt 0:01:01]} 33. Ng2 {[%emt 0:00:28]} Rgxg4 {[%emt 0:00:36]} 34. fxg4 {[%emt 0:00:12]} Rxh3+ {[%emt 0:00:28]} 35. Kg1 {[%emt 0:00:08]} Bh2+ {[%emt 0:00:26]} 36. Kh1 {[%emt 0:00:59]} d3 {[%emt 0:01:15]} 37. Qd1 {[%emt 0:01:08]} Bxe5+ {[%emt 0:00:33]} 38. Kg1 {[%emt 0:00:11]} Bd4+ {[%emt 0:00:27]} 1/2-1/2

[Event "FRA-ch Youth U18 2018"]
[Site "Agen"]
[Date "2018.04.16"]
[Round "2"]
[White "Lomandong, Noela-Joyce"]
[Black "Bruneau, Maylis"]
[Result "1-0"]
[ECO "A00"]
[WhiteElo "2053"]
[BlackElo "1700"]
[Annotator "NA RC"]
[PlyCount "63"]
[EventDate "2018.??.??"]
[EventType "swiss"]
[EventCountry "FRA"]
[SourceTitle "playchess.com"]
[Source "ChessBase"]
[SourceQuality "1"]
[TimeControl "5400+30"]

{[%evp 15,61,0,34,13,40,16,32767,32767,32767,32767,-20,32767,0,0,32767,32767,32767,0,2,0,32767,32767,32767,32767,32767,32767,32767,49,31,32767,83,78,92,32767,51,51,100,81,32767,32767,32767,32767,117,73,469,467,533,625]} 1. g3 {[%emt 0:00:39]} c5 {[%emt 0:00:17]} 2. Bg2 {[%emt 0:00:15]} Nc6 {[%emt 0:00:25]} 3. e4 {[%emt 0:04:19]} g6 {[%emt 0:01:13]} 4. c3 {[%emt 0:00:25]} Bg7 {[%emt 0:02:36]} 5. f4 {[%emt 0:00:13]} d6 {[%emt 0:03:29]} 6. Nf3 {[%emt 0:00:37]} Nf6 {[%emt 0:00:40]} 7. d3 {[%emt 0:00:06]} O-O {[%emt 0:02:53]} 8. O-O {[%emt 0:01:40] LiveBook: 123 Games} Qb6 {[%emt 0:09:30] B20: Sicilian: Unusual White 2nd moves} (8... e5 9. Na3 exf4 10. Bxf4 d5 11. Nb5 dxe4 12. dxe4 Bg4 13. Qc2 Qa5 14. a4 a6 15. Bc7 b6 16. Nd6 c4 {0-1 (49) Jakubiec,A (2513)-Shengelia,D (2554) Czech Republic 2016}) 9. Nbd2 {[%emt 0:11:48]} Bd7 {[%emt 0:14:04]} 10. h3 {[%emt 0:02:46]} Qc7 {[%emt 0:02:04]} 11. Nh4 $146 {[%emt 0:01:45]} ({Predecessor:} 11. Qe1 e5 12. Nh4 exf4 13. gxf4 Rae8 14. Rf3 b5 15. Nf1 c4 16. Ng3 Re7 17. d4 Nxe4 18. Nxe4 {0-1 (40) Viennot,K (1770)-Lagunes,J (2096) St Chely d'Aubrac 2009}) 11... b5 {[%emt 0:08:32]} 12. g4 {[%emt 0:04:37]} Rab8 {[%emt 0:10:11]} 13. Ndf3 {[%emt 0:09:23]} c4 {[%emt 0:03:25] [#]} 14. e5 $1 {[%emt 0:25:04]} dxe5 {[%emt 0:07:02]} 15. fxe5 {[%emt 0:00:05]} Nxe5 {[%emt 0:13:29]} 16. Nxe5 {[%emt 0:01:00]} Qxe5 {[%emt 0:00:06]} 17. Bf4 {[%emt 0:02:07]} Qc5+ {[%emt 0:00:11]} 18. d4 {[%emt 0:00:19]} Qb6 {[%emt 0:00:18]} 19. Bxb8 {[%emt 0:00:18]} Rxb8 {[%emt 0:00:48]} 20. Qf3 {[%emt 0:01:08]} Be6 {[%emt 0:04:43]} 21. a3 {[%emt 0:05:38]} a5 {[%emt 0:01:16]} 22. Kh1 {[%emt 0:02:52]} Nd5 {[%emt 0:01:59] [#]} (22... Qd6 $11) 23. Nf5 $1 {[%emt 0:04:32]} Bf6 {[%emt 0:08:13]} ({Avoid the trap} 23... gxf5 $2 24. gxf5 Bc8 25. Qxd5 $18) 24. Ne3 {[%emt 0:00:43]} Nxe3 {[%emt 0:01:35]} 25. Qxe3 {[%emt 0:00:02]} b4 {[%emt 0:00:52]} 26. axb4 {[%emt 0:03:02]} axb4 {[%emt 0:00:13]} 27. Ra4 {[%emt 0:01:41]} bxc3 {[%emt 0:00:28]} 28. bxc3 {[%emt 0:00:07]} Qb3 {[%emt 0:01:21]} 29. Rfa1 {[%emt 0:00:27]} Kg7 $2 {[%emt 0:02:11]} (29... g5 $16 {is tougher.} 30. Be4 h6) 30. g5 {[%emt 0:00:40]} Bxg5 {[%emt 0:00:35]} 31. Qxg5 $18 {[%emt 0:00:08]} f6 {[%emt 0:00:41]} 32. Qe3 {[%emt 0:00:07]} 1-0

[Event "FRA-ch Youth U18 2018"]
[Site "Agen"]
[Date "2018.04.16"]
[Round "2"]
[White "Salvador, Lucie"]
[Black "Georget, Laureline"]
[Result "1-0"]
[ECO "D02"]
[WhiteElo "1955"]
[BlackElo "1670"]
[Annotator "NA RC"]
[PlyCount "116"]
[EventDate "2018.??.??"]
[EventType "swiss"]
[EventCountry "FRA"]
[SourceTitle "playchess.com"]
[Source "ChessBase"]
[SourceQuality "1"]
[TimeControl "5400+30"]

{[%evp 14,113,-7,-18,0,1,32767,32767,32767,32767,32767,93,32767,70,74,33,50,46,37,25,54,40,31,25,32767,32767,32767,32767,32767,38,32767,51,32767,32767,32767,54,32767,32767,96,97,104,100,142,129,109,117,151,148,32767,32767,32767,32767,32767,32767,32767,143,32767,32767,146,153,229,168,32767,103,206,132,131,145,202,0,393,32767,597,570,502,562,546,32767,32767,345,431,463,405,187,428,280,293,273,417,11,20,16,391,224,193,227,406,99,108,113,114,0]} 1. d4 {[%emt 0:00:00]} d5 {[%emt 0:00:05]} 2. Nf3 {[%emt 0:00:00]} Nf6 {[%emt 0:00:14]} 3. g3 {[%emt 0:00:00]} e6 {[%emt 0:00:14]} 4. Bg2 {[%emt 0:00:00]} c5 {[%emt 0:00:55]} 5. dxc5 {[%emt 0:09:54]} Bxc5 {[%emt 0:00:35]} 6. O-O {[%emt 0:00:36] D02: 1 d4 d5 2 Nf3 sidelines, including 2...Nf6 3 g3 and 2...Nf6 3 Bf4} O-O {[%emt 0:00:48]} 7. c4 {[%emt 0:04:10]} dxc4 {[%emt 0:19:43]} 8. Qa4 {[%emt 0:08:05]} Nc6 {[%emt 0:09:37] LiveBook: 47 Games} 9. Qxc4 {[%emt 0:02:25]} Bd6 $146 {[%emt 0:09:40]} ({Predecessor:} 9... Be7 10. Nc3 Bd7 11. Rd1 Rc8 12. Bg5 h6 13. Bxf6 Bxf6 14. Qd3 Qb6 15. Ne4 Be7 16. Nd6 Rcd8 17. Qb3 Qc7 18. Nb5 Qb8 19. Nbd4 Bf6 {½-½ (38) Bu,X (2710)-Lu,S (2615) Taizhou 2015}) 10. Nc3 {[%emt 0:05:45]} a6 {[%emt 0:02:32]} 11. Rd1 {[%emt 0:05:19]} Qc7 {[%emt 0:01:14]} 12. Bg5 {[%emt 0:03:15]} Ne5 {[%emt 0:20:19]} 13. Qh4 {[%emt 0:07:22]} Ng6 {[%emt 0:01:19]} 14. Qa4 {[%emt 0:03:34]} Bd7 {[%emt 0:04:28]} 15. Qb3 {[%emt 0:01:42]} Bc6 {[%emt 0:02:28]} 16. Rac1 {[%emt 0:03:45]} Rac8 {[%emt 0:01:49]} 17. Bxf6 {[%emt 0:04:58]} gxf6 {[%emt 0:00:11]} 18. Ne4 {[%emt 0:02:13]} Be7 {[%emt 0:02:20]} 19. Nd4 {[%emt 0:01:50]} Qe5 {[%emt 0:08:49]} 20. Nxc6 {[%emt 0:02:15]} bxc6 {[%emt 0:00:31]} 21. Qc3 {[%emt 0:02:39]} c5 {[%emt 0:06:45]} 22. Rd7 {[%emt 0:04:07]} Qxc3 {[%emt 0:01:34]} 23. Rxc3 {[%emt 0:00:20]} f5 {[%emt 0:01:46]} 24. Nd2 {[%emt 0:04:39]} Bf6 {[%emt 0:02:05]} 25. Rc2 {[%emt 0:01:56]} Rb8 {[%emt 0:01:36]} 26. b3 {[%emt 0:00:46]} ({And not} 26. Rxc5 Rxb2 27. a3 Ne5 $17) 26... Rfd8 {[%emt 0:00:57]} 27. Rc7 {[%emt 0:03:15]} Be7 {[%emt 0:00:31]} 28. h4 {[%emt 0:01:15]} Bf8 {[%emt 0:00:22]} 29. Ra7 {[%emt 0:00:58]} Rd6 {[%emt 0:00:44]} 30. Nc4 {[%emt 0:00:45]} Rd1+ {[%emt 0:00:05]} 31. Kh2 {[%emt 0:00:17]} f4 {[%emt 0:00:47]} 32. Rxa6 {[%emt 0:01:55]} fxg3+ {[%emt 0:00:52]} 33. fxg3 {[%emt 0:00:03]} Re1 {[%emt 0:00:24]} 34. Ra8 {[%emt 0:03:38]} Rxa8 {[%emt 0:00:30]} 35. Bxa8 {[%emt 0:00:02]} Ne7 {[%emt 0:00:34]} 36. a4 {[%emt 0:01:03]} Nf5 {[%emt 0:00:21]} (36... Rb1 $16) 37. e4 {[%emt 0:02:05]} Nd4 {[%emt 0:00:15]} 38. Rb2 {[%emt 0:00:47]} Be7 {[%emt 0:00:25]} (38... Ra1 $16) 39. a5 {[%emt 0:00:46]} Ra1 {[%emt 0:00:27]} 40. Bb7 {[%emt 0:00:31]} Nb5 {[%emt 0:00:31]} 41. Bc6 $2 {[%emt 0:01:14]} ({White should try} 41. e5 $18) 41... Nd4 $2 {[%emt 0:00:49]} (41... Nd6 $1 $11 {and Black has nothing to worry.}) 42. Ba4 {[%emt 0:01:25]} Nf3+ {[%emt 0:00:37]} 43. Kg2 {[%emt 0:01:36]} Ne1+ {[%emt 0:00:13]} 44. Kh3 {[%emt 0:00:17]} Nd3 {[%emt 0:00:40]} 45. Rd2 {[%emt 0:00:16]} Nb4 {[%emt 0:00:12]} 46. Rd7 {[%emt 0:01:12]} Bf6 {[%emt 0:00:18]} 47. e5 {[%emt 0:00:14]} Bg7 {[%emt 0:00:27]} 48. Rd8+ {[%emt 0:02:00]} Bf8 {[%emt 0:00:08]} 49. Nb6 {[%emt 0:00:37]} Kg7 {[%emt 0:00:15]} 50. Nd7 {[%emt 0:01:16]} c4 {[%emt 0:00:34]} 51. Rc8 $2 {[%emt 0:01:23]} ({Weaker is} 51. Nxf8 c3 $18) (51. Rxf8 $18 cxb3 52. Bxb3) 51... cxb3 {[%emt 0:00:49]} 52. Bxb3 {[%emt 0:00:09]} Ra3 $2 {[%emt 0:00:58]} (52... Be7 $11) 53. Bc4 {[%emt 0:00:40]} ({Weaker is} 53. Nxf8 Rxb3 54. Nxh7 Kxh7 $16) (53. Rxf8 $142 Rxa5 54. Rc8) 53... Be7 {[%emt 0:00:43]} 54. Re8 {[%emt 0:00:33]} Rc3 $2 {[%emt 0:00:26]} (54... Nc6) 55. Bb5 $2 {[%emt 0:00:25]} ({Weaker is} 55. Rxe7 Rxc4 56. Re8 Nc6 $16) (55. a6 $18 {and White stays clearly on top.} Nc6 {[#]} 56. Bxe6 $1 {[%mdl 512]} fxe6 57. a7 $1 {[%mdl 512]}) 55... Nd5 {[%emt 0:00:18] [#]} 56. a6 $1 {[%emt 0:00:19]} Ra3 {[%emt 0:01:09]} 57. Bc6 $11 {[%emt 0:01:56]} (57. Rb8 $16) 57... Bb4 58. Bxd5 exd5 1-0

[Event "FRA-ch Youth U18 2018"]
[Site "Agen"]
[Date "2018.04.16"]
[Round "2"]
[White "Joly, Audrey"]
[Black "Rollot, Florence"]
[Result "0-1"]
[ECO "B01"]
[WhiteElo "1686"]
[BlackElo "2042"]
[Annotator "NA RC"]
[PlyCount "88"]
[EventDate "2018.??.??"]
[EventType "swiss"]
[EventCountry "FRA"]
[SourceTitle "playchess.com"]
[Source "ChessBase"]
[SourceQuality "1"]
[TimeControl "5400+30"]

{[%evp 14,88,33,4,0,-10,54,11,6,32767,32767,32767,32767,-24,32767,10,11,32767,16,32767,0,0,0,-43,17,0,0,7,32767,32767,102,21,32767,32767,32767,0,32767,32767,32767,32767,20,6,19,32767,32767,16,32767,18,22,0,0,0,15,-317,-284,-339,-350,-346,-361,-341,-348,-352,32767,32767,-393,-409,-389,-405,32767,-412,-444,-412,-470,-507,-460,-489,-583]} 1. e4 {[%emt 0:00:00]} d5 {[%emt 0:00:07]} 2. exd5 {[%emt 0:00:00]} Qxd5 {[%emt 0:00:07]} 3. Nc3 {[%emt 0:00:00]} Qa5 {[%emt 0:00:05]} 4. Bc4 {[%emt 0:00:06]} Nf6 {[%emt 0:01:00]} 5. d3 {[%emt 0:00:44]} Bg4 {[%emt 0:06:01]} 6. f3 {[%emt 0:04:13]} Bf5 {[%emt 0:01:40]} 7. Bd2 {[%emt 0:02:33] B01: Scandinavian Defence} Qb6 {[%emt 0:06:38]} 8. Bb3 {[%emt 0:06:14]} (8. Qe2 Nc6 9. O-O-O Nd4 10. Qe3 c5 11. g4 Bg6 12. Nh3 e6 13. Nf4 Bd6 14. h4 Bxf4 15. Qxf4 {½-½ (67) Tari,A (2593)-Blomqvist,E (2499) Stockholm 2017}) 8... e6 {[%emt 0:05:16]} 9. Qe2 $146 {[%emt 0:03:55]} ({Predecessor:} 9. g4 Bg6 10. h4 h6 11. Qe2 Nbd7 12. O-O-O O-O-O 13. h5 Bh7 14. Be3 Qa5 {0-1 (53) York Andersen,A (1808)-McKerracher,D (1972) London 2015}) 9... Bb4 {[%emt 0:04:24]} 10. O-O-O {[%emt 0:04:21]} Nc6 {[%emt 0:04:30]} 11. Na4 {[%emt 0:11:38]} Qb5 {[%emt 0:09:25]} 12. Bxb4 {[%emt 0:02:48]} Qxb4 {[%emt 0:01:18]} 13. Qd2 {[%emt 0:01:52]} Qd6 {[%emt 0:02:36]} 14. Ne2 {[%emt 0:03:05]} O-O-O {[%emt 0:02:37]} 15. Nac3 {[%emt 0:09:28]} Bg6 {[%emt 0:07:13]} 16. Qe3 {[%emt 0:03:59]} a6 {[%emt 0:02:55]} 17. Ne4 {[%emt 0:05:47]} Qe5 {[%emt 0:03:23]} 18. Qf4 {[%emt 0:01:49]} Nd5 {[%emt 0:03:47]} 19. Qxe5 {[%emt 0:03:10]} Nxe5 {[%emt 0:00:03]} 20. Bxd5 {[%emt 0:00:36]} exd5 {[%emt 0:03:40]} 21. N4g3 {[%emt 0:02:19]} d4 {[%emt 0:01:32] [#]} (21... h6 $11) 22. Nf4 {[%emt 0:01:14]} ({White should play} 22. f4 $1 $16) 22... Nc6 {[%emt 0:01:57]} 23. a3 {[%emt 0:01:39]} b5 {[%emt 0:07:39]} 24. Nxg6 {[%emt 0:03:42]} hxg6 {[%emt 0:00:26]} 25. h3 {[%emt 0:00:51]} b4 {[%emt 0:01:43]} 26. axb4 {[%emt 0:04:07]} Nxb4 {[%emt 0:00:11]} 27. Ne4 {[%emt 0:01:10]} Rh5 {[%emt 0:01:05]} 28. Kd2 {[%emt 0:01:18]} Rb5 {[%emt 0:01:44]} 29. Ra1 {[%emt 0:02:31]} Kb7 {[%emt 0:00:26]} 30. Ra4 {[%emt 0:01:23]} Kb6 {[%emt 0:02:56]} 31. Rha1 {[%emt 0:01:54]} a5 {[%emt 0:01:17]} 32. Re1 {[%emt 0:05:41]} Rdd5 {[%emt 0:02:32]} 33. c4 $2 {[%emt 0:03:27]} (33. Rc1 $11) 33... dxc3+ $1 {[%emt 0:00:16]} 34. bxc3 {[%emt 0:00:40]} Nxd3 {[%emt 0:00:57]} 35. c4 {[%emt 0:00:25]} Nxe1+ {[%emt 0:01:37]} 36. cxd5 {[%emt 0:00:46]} Nxg2 {[%emt 0:00:17]} 37. Nc3 {[%emt 0:00:35]} Rb2+ {[%emt 0:01:06]} 38. Kd3 {[%emt 0:01:04]} Ne1+ {[%emt 0:00:55]} 39. Ke3 {[%emt 0:01:27]} Nc2+ {[%emt 0:01:17]} 40. Kd3 {[%emt 0:00:56]} Nb4+ {[%emt 0:00:06]} 41. Ke4 {[%emt 0:00:42]} Rh2 {[%emt 0:00:32]} 42. Ra1 {[%emt 0:00:59]} Rxh3 {[%emt 0:00:31]} 43. Rd1 {[%emt 0:00:59]} f5+ {[%emt 0:01:34]} 44. Ke3 {[%emt 0:00:43]} g5 $19 {[%emt 0:00:50]} 0-1